[Event "*** Titled Tuesday Blitz"]
[Site "Chess.com"]
[Date "2019.07.02"]
[Round "7"]
[White "Everyfishknows"]
[Black "witcher8"]
[Result "0-1"]
[WhiteElo "2293"]
[BlackElo "2448"]
[TimeControl "180+2"]
[EndTime "14:37:42 PDT"]
[Termination "witcher8 won by checkmate"]

1. Nf3 {[%clk 0:03:01.9]} 1... Nf6 {[%clk 0:03:00.7]} 2. c4 {[%clk 0:03:01.5]}
2... g6 {[%clk 0:02:59.1]} 3. Nc3 {[%clk 0:03:00.8]} 3... Bg7 {[%clk 0:02:59.5]}
4. e4 {[%clk 0:03:00.5]} 4... d6 {[%clk 0:03:00.8]} 5. d4 {[%clk 0:03:01.2]}
5... O-O {[%clk 0:03:01.7]} 6. Be2 {[%clk 0:03:02.7]} 6... e5 {[%clk 0:03:02.7]}
7. O-O {[%clk 0:03:04]} 7... Nc6 {[%clk 0:03:02.6]} 8. Be3 {[%clk 0:03:04.3]}
8... Ng4 {[%clk 0:02:30.8]} 9. Bg5 {[%clk 0:03:03.8]} 9... f6 {[%clk 0:02:27.9]}
10. Bc1 {[%clk 0:03:04.3]} 10... f5 {[%clk 0:02:13.3]} 11. Bg5 {[%clk
0:03:02.7]} 11... Qd7 {[%clk 0:02:08.9]} 12. d5 {[%clk 0:02:25.1]} 12... Nd8
{[%clk 0:02:02.3]} 13. c5 {[%clk 0:02:18.3]} 13... Nf7 {[%clk 0:01:52.4]} 14. c6
{[%clk 0:01:33.5]} 14... bxc6 {[%clk 0:01:06.9]} 15. dxc6 {[%clk 0:01:35.4]}
15... Qxc6 {[%clk 0:01:07.9]} 16. Bb5 {[%clk 0:01:19.5]} 16... Qb7 {[%clk
0:00:52.4]} 17. Be7 {[%clk 0:00:49.4]} 17... Be6 {[%clk 0:00:29.3]} 18. Bxf8
{[%clk 0:00:48.3]} 18... Bxf8 {[%clk 0:00:27.1]} 19. exf5 {[%clk 0:00:33.4]}
19... gxf5 {[%clk 0:00:26.9]} 20. Ba4 {[%clk 0:00:34.1]} 20... Qxb2 {[%clk
0:00:22.3]} 21. Bb3 {[%clk 0:00:28.9]} 21... Bxb3 {[%clk 0:00:14.2]} 22. Qxb3
{[%clk 0:00:30.8]} 22... Qxb3 {[%clk 0:00:13.6]} 23. axb3 {[%clk 0:00:32.7]}
23... c6 {[%clk 0:00:09.9]} 24. h3 {[%clk 0:00:14.7]} 24... Nf6 {[%clk
0:00:10.5]} 25. Rfe1 {[%clk 0:00:13.4]} 25... Nd7 {[%clk 0:00:11.3]} 26. Nh4
{[%clk 0:00:08.4]} 26... Nh6 {[%clk 0:00:08.4]} 27. Ra6 {[%clk 0:00:09.5]} 27...
Nb8 {[%clk 0:00:05.3]} 28. Ra4 {[%clk 0:00:09.1]} 28... d5 {[%clk 0:00:03.6]}
29. g4 {[%clk 0:00:10.1]} 29... fxg4 {[%clk 0:00:04.4]} 30. hxg4 {[%clk
0:00:12]} 30... e4 {[%clk 0:00:04.8]} 31. f3 {[%clk 0:00:05.9]} 31... Bc5+
{[%clk 0:00:03]} 32. Kg2 {[%clk 0:00:06.9]} 32... exf3+ {[%clk 0:00:04]} 33.
Nxf3 {[%clk 0:00:08.8]} 33... Nd7 {[%clk 0:00:04.8]} 34. Ne5 {[%clk 0:00:08]}
34... Nxe5 {[%clk 0:00:05.5]} 35. Rxe5 {[%clk 0:00:09.9]} 35... Rf8 {[%clk
0:00:06.6]} 36. Rg5+ {[%clk 0:00:08.4]} 36... Kh8 {[%clk 0:00:07.6]} 37. Nd1
{[%clk 0:00:08.7]} 37... Bb6 {[%clk 0:00:07.4]} 38. Ra2 {[%clk 0:00:09.2]} 38...
Rf4 {[%clk 0:00:06.6]} 39. Kg3 {[%clk 0:00:07.9]} 39... Bc7 {[%clk 0:00:05.8]}
40. Kh3 {[%clk 0:00:04.3]} 40... Bb6 {[%clk 0:00:06.1]} 41. Kg3 {[%clk
0:00:05.4]} 41... Rb4 {[%clk 0:00:07]} 42. Rb2 {[%clk 0:00:03.3]} 42... Nf7
{[%clk 0:00:06.6]} 43. Rf5 {[%clk 0:00:03.8]} 43... Kg7 {[%clk 0:00:07.9]} 44.
Kf3 {[%clk 0:00:03.4]} 44... Bc7 {[%clk 0:00:06.1]} 45. Nc3 {[%clk 0:00:03.2]}
45... Nh6 {[%clk 0:00:03.3]} 46. Rg5+ {[%clk 0:00:04.7]} 46... Kf6 {[%clk
0:00:04.7]} 47. Rh5 {[%clk 0:00:06.2]} 47... Kg6 {[%clk 0:00:06.1]} 48. Rh1
{[%clk 0:00:05.9]} 48... Be5 {[%clk 0:00:06.6]} 49. Rc2 {[%clk 0:00:06.5]} 49...
Rxb3 {[%clk 0:00:07.6]} 50. Rhc1 {[%clk 0:00:04.8]} 50... d4 {[%clk 0:00:07.9]}
51. Ke4 {[%clk 0:00:06.5]} 51... Nxg4 {[%clk 0:00:08.4]} 52. Rg1 {[%clk
0:00:03.4]} 52... h5 {[%clk 0:00:08.2]} 53. Rxg4+ {[%clk 0:00:04.6]} 53... hxg4
{[%clk 0:00:08.5]} 54. Ne2 {[%clk 0:00:05.6]} 54... Re3# {[%clk 0:00:08.6]} 0-1

[Event "*** Titled Tuesday Blitz"]
[Site "Chess.com"]
[Date "2019.07.02"]
[Round "7"]
[White "Sanan_Sjugirov"]
[Black "TenisMaster"]
[Result "1-0"]
[WhiteElo "2957"]
[BlackElo "2837"]
[TimeControl "180+2"]
[EndTime "14:38:12 PDT"]
[Termination "Sanan_Sjugirov won by resignation"]

1. d4 {[%clk 0:03:01.9]} 1... Nf6 {[%clk 0:03:00.5]} 2. c4 {[%clk 0:03:02.5]}
2... e6 {[%clk 0:03:01.3]} 3. Nf3 {[%clk 0:03:02.8]} 3... d5 {[%clk 0:03:02.3]}
4. Nc3 {[%clk 0:03:03.5]} 4... c6 {[%clk 0:03:03.2]} 5. Bg5 {[%clk 0:03:03.6]}
5... Nbd7 {[%clk 0:03:03.9]} 6. e3 {[%clk 0:03:03.8]} 6... h6 {[%clk 0:03:04.2]}
7. Bh4 {[%clk 0:03:04.6]} 7... g5 {[%clk 0:03:05.5]} 8. Bg3 {[%clk 0:03:05.7]}
8... Nh5 {[%clk 0:03:07]} 9. Bd3 {[%clk 0:02:46.6]} 9... Nxg3 {[%clk 0:03:07]}
10. hxg3 {[%clk 0:02:48.5]} 10... Bg7 {[%clk 0:03:08.3]} 11. Qb3 {[%clk
0:02:42]} 11... a6 {[%clk 0:02:58]} 12. cxd5 {[%clk 0:02:33.8]} 12... cxd5
{[%clk 0:02:51.4]} 13. a4 {[%clk 0:02:24.8]} 13... O-O {[%clk 0:02:46]} 14. g4
{[%clk 0:01:55]} 14... b6 {[%clk 0:02:40.6]} 15. Qc2 {[%clk 0:01:48.5]} 15...
Bb7 {[%clk 0:02:39.1]} 16. Qd2 {[%clk 0:01:33.6]} 16... Re8 {[%clk 0:02:32.7]}
17. Ne2 {[%clk 0:01:30.3]} 17... Rc8 {[%clk 0:02:13.9]} 18. Ng3 {[%clk
0:01:29.8]} 18... Nf6 {[%clk 0:02:14.8]} 19. Ne5 {[%clk 0:01:24.8]} 19... Qd6
{[%clk 0:02:13.6]} 20. Rd1 {[%clk 0:00:54.3]} 20... Ne4 {[%clk 0:02:03.5]} 21.
Nxe4 {[%clk 0:00:32.7]} 21... dxe4 {[%clk 0:02:05.4]} 22. Be2 {[%clk 0:00:30.7]}
22... Rc7 {[%clk 0:00:51.3]} 23. Nc4 {[%clk 0:00:29.8]} 23... Qc6 {[%clk
0:00:52.3]} 24. b3 {[%clk 0:00:29.8]} 24... Rec8 {[%clk 0:00:50.2]} 25. O-O
{[%clk 0:00:28.9]} 25... Ba8 {[%clk 0:00:36.6]} 26. Ra1 {[%clk 0:00:24.8]} 26...
b5 {[%clk 0:00:37.1]} 27. axb5 {[%clk 0:00:26.7]} 27... axb5 {[%clk 0:00:38.7]}
28. Na3 {[%clk 0:00:28.1]} 28... Rb7 {[%clk 0:00:35.3]} 29. Rfc1 {[%clk
0:00:27.8]} 29... Qe8 {[%clk 0:00:36.3]} 30. Rxc8 {[%clk 0:00:28.2]} 30... Qxc8
{[%clk 0:00:38.2]} 31. Nxb5 {[%clk 0:00:29.6]} 31... Rb8 {[%clk 0:00:35.1]} 32.
Bc4 {[%clk 0:00:26.4]} 32... Bc6 {[%clk 0:00:35.6]} 33. Nc3 {[%clk 0:00:26.4]}
33... Qc7 {[%clk 0:00:33.5]} 34. Ra6 {[%clk 0:00:21.7]} 34... Rd8 {[%clk
0:00:32.9]} 35. Qa2 {[%clk 0:00:21.3]} 35... Bb7 {[%clk 0:00:33.8]} 36. Ra7
{[%clk 0:00:21.5]} 36... Qb8 {[%clk 0:00:32.2]} 37. Qa5 {[%clk 0:00:21.7]} 37...
Bc6 {[%clk 0:00:29.4]} 38. Qc7 {[%clk 0:00:20.6]} 38... Qxc7 {[%clk 0:00:25.4]}
39. Rxc7 {[%clk 0:00:22.5]} 39... Ba8 {[%clk 0:00:26.8]} 40. b4 {[%clk
0:00:21.6]} 40... Bf8 {[%clk 0:00:27.2]} 41. b5 {[%clk 0:00:21.3]} 41... Bd6
{[%clk 0:00:28.4]} 42. Ra7 {[%clk 0:00:21.7]} 42... Rc8 {[%clk 0:00:28.3]} 43.
b6 {[%clk 0:00:19.4]} 43... Rxc4 {[%clk 0:00:26.2]} 44. Rxa8+ {[%clk 0:00:20.4]}
44... Kg7 {[%clk 0:00:27.6]} 45. Rd8 {[%clk 0:00:12.8]} 45... Rxc3 {[%clk
0:00:20.9]} 46. Rxd6 {[%clk 0:00:13.9]} 46... Rc1+ {[%clk 0:00:22.1]} 47. Kh2
{[%clk 0:00:14.7]} 47... Rc2 {[%clk 0:00:22.2]} 48. b7 {[%clk 0:00:13.6]} 48...
Rb2 {[%clk 0:00:23.3]} 49. Rd7 {[%clk 0:00:15]} 49... Kg6 {[%clk 0:00:24.1]} 50.
Kg3 {[%clk 0:00:14.1]} 50... f6 {[%clk 0:00:24.7]} 51. f3 {[%clk 0:00:13.3]}
51... exf3 {[%clk 0:00:24.6]} 52. gxf3 {[%clk 0:00:15.2]} 52... h5 {[%clk
0:00:26]} 53. gxh5+ {[%clk 0:00:16]} 53... Kxh5 {[%clk 0:00:27.9]} 54. e4 {[%clk
0:00:16.1]} 54... f5 {[%clk 0:00:28.8]} 55. exf5 {[%clk 0:00:17.1]} 55... exf5
{[%clk 0:00:29.6]} 56. d5 {[%clk 0:00:16.8]} 56... f4+ {[%clk 0:00:29.2]} 57.
Kh3 {[%clk 0:00:18.1]} 57... Rb3 {[%clk 0:00:30.4]} 58. Kg2 {[%clk 0:00:13.4]}
58... Rb2+ {[%clk 0:00:31.6]} 59. Kf1 {[%clk 0:00:14]} 59... Kh4 {[%clk
0:00:33.1]} 60. d6 {[%clk 0:00:12.3]} 60... Kg3 {[%clk 0:00:34.2]} 61. Rc7
{[%clk 0:00:11]} 61... Kxf3 {[%clk 0:00:35]} 62. Ke1 {[%clk 0:00:09.4]} 62...
Ke3 {[%clk 0:00:27.8]} 63. Re7+ {[%clk 0:00:09.9]} 63... Kf3 {[%clk 0:00:26.6]}
64. d7 {[%clk 0:00:09.9]} 64... Kg2 {[%clk 0:00:19.2]} 65. d8=Q {[%clk
0:00:07.7]} 65... f3 {[%clk 0:00:21.1]} 66. Qd5 {[%clk 0:00:05.3]} 66... g4
{[%clk 0:00:19.9]} 67. Rg7 {[%clk 0:00:05.7]} 1-0

[Event "*** Titled Tuesday Blitz"]
[Site "Chess.com"]
[Date "2019.07.02"]
[Round "7"]
[White "temus_galaktionov"]
[Black "DanielNaroditsky"]
[Result "1/2-1/2"]
[WhiteElo "2547"]
[BlackElo "3029"]
[TimeControl "180+2"]
[EndTime "14:38:20 PDT"]
[Termination "Game drawn by repetition"]

1. d4 {[%clk 0:02:59.9]} 1... Nf6 {[%clk 0:03:01.2]} 2. Nf3 {[%clk 0:03:01]}
2... g6 {[%clk 0:03:02.4]} 3. c4 {[%clk 0:03:02]} 3... Bg7 {[%clk 0:03:03.8]} 4.
Nc3 {[%clk 0:03:03]} 4... O-O {[%clk 0:03:05.1]} 5. e4 {[%clk 0:03:03.9]} 5...
d6 {[%clk 0:03:06.3]} 6. Be2 {[%clk 0:03:05.1]} 6... e5 {[%clk 0:03:06.2]} 7.
O-O {[%clk 0:03:05.9]} 7... exd4 {[%clk 0:03:07]} 8. Nxd4 {[%clk 0:03:06.9]}
8... Re8 {[%clk 0:03:08.9]} 9. f3 {[%clk 0:03:07.2]} 9... c6 {[%clk 0:03:10.7]}
10. Bg5 {[%clk 0:02:46.5]} 10... Qb6 {[%clk 0:02:58.9]} 11. Na4 {[%clk
0:02:47.5]} 11... Qa5 {[%clk 0:02:53.5]} 12. Bd2 {[%clk 0:02:47.2]} 12... Qc7
{[%clk 0:02:47]} 13. Bf4 {[%clk 0:02:43.4]} 13... Nh5 {[%clk 0:02:42.5]} 14. Be3
{[%clk 0:02:44.2]} 14... f5 {[%clk 0:02:39.6]} 15. Nc3 {[%clk 0:02:34.2]} 15...
f4 {[%clk 0:02:36.1]} 16. Bf2 {[%clk 0:02:33.2]} 16... Be5 {[%clk 0:02:33.8]}
17. Nc2 {[%clk 0:02:13.3]} 17... Qe7 {[%clk 0:02:28.5]} 18. Qd2 {[%clk
0:02:12.1]} 18... Nd7 {[%clk 0:02:06.1]} 19. Rfd1 {[%clk 0:02:09.9]} 19... g5
{[%clk 0:01:56.1]} 20. Bd4 {[%clk 0:02:08.9]} 20... Ng7 {[%clk 0:01:46.3]} 21.
Bxe5 {[%clk 0:01:53.1]} 21... dxe5 {[%clk 0:01:48.2]} 22. Qd6 {[%clk 0:01:54.1]}
22... Qxd6 {[%clk 0:01:27.9]} 23. Rxd6 {[%clk 0:01:54.9]} 23... Re6 {[%clk
0:01:21.3]} 24. Rd2 {[%clk 0:01:51.4]} 24... Re8 {[%clk 0:01:14.7]} 25. Rad1
{[%clk 0:01:46]} 25... Nf6 {[%clk 0:01:12.1]} 26. b4 {[%clk 0:01:24.2]} 26...
Be6 {[%clk 0:01:13.2]} 27. Na4 {[%clk 0:01:15.8]} 27... Bf7 {[%clk 0:01:09.9]}
28. Nc5 {[%clk 0:01:13.8]} 28... b6 {[%clk 0:01:08.1]} 29. Nb7 {[%clk
0:01:10.9]} 29... Re7 {[%clk 0:01:05.3]} 30. Nd8 {[%clk 0:00:57.8]} 30... c5
{[%clk 0:00:48.4]} 31. bxc5 {[%clk 0:00:45.7]} 31... bxc5 {[%clk 0:00:50.3]} 32.
Rd6 {[%clk 0:00:39.9]} 32... Nfe8 {[%clk 0:00:45.8]} 33. Rc6 {[%clk 0:00:22.1]}
33... Ne6 {[%clk 0:00:47.2]} 34. Nxe6 {[%clk 0:00:21.5]} 34... Rxe6 {[%clk
0:00:49.1]} 35. Rxc5 {[%clk 0:00:20.6]} 35... Rb8 {[%clk 0:00:50.8]} 36. Rb5
{[%clk 0:00:15]} 36... Reb6 {[%clk 0:00:43.7]} 37. a4 {[%clk 0:00:16.1]} 37...
a6 {[%clk 0:00:39.4]} 38. Rxe5 {[%clk 0:00:17.2]} 38... h6 {[%clk 0:00:38.6]}
39. Nd4 {[%clk 0:00:15.3]} 39... Rb2 {[%clk 0:00:37.4]} 40. Bf1 {[%clk
0:00:16.6]} 40... Rd8 {[%clk 0:00:36]} 41. c5 {[%clk 0:00:15.3]} 41... Rb4
{[%clk 0:00:30.3]} 42. Nc6 {[%clk 0:00:16.4]} 42... Rxd1 {[%clk 0:00:29.9]} 43.
Nxb4 {[%clk 0:00:14.2]} 43... Bc4 {[%clk 0:00:31.5]} 44. h4 {[%clk 0:00:12.4]}
44... Nc7 {[%clk 0:00:18.8]} 45. hxg5 {[%clk 0:00:13.1]} 45... Rxf1+ {[%clk
0:00:20.1]} 46. Kh2 {[%clk 0:00:14]} 46... hxg5 {[%clk 0:00:14.8]} 47. Rxg5+
{[%clk 0:00:15.9]} 47... Kh7 {[%clk 0:00:15.4]} 48. Nd5 {[%clk 0:00:15]} 48...
Ne6 {[%clk 0:00:11]} 49. Nf6+ {[%clk 0:00:14.1]} 49... Kh6 {[%clk 0:00:12.6]}
50. Rg8 {[%clk 0:00:14.4]} 50... Ng7 {[%clk 0:00:04.8]} 51. Ng4+ {[%clk
0:00:13.5]} 51... Kh7 {[%clk 0:00:06.5]} 52. Rf8 {[%clk 0:00:14.4]} 52... Rc1
{[%clk 0:00:07.2]} 53. Rxf4 {[%clk 0:00:14.7]} 53... Be6 {[%clk 0:00:08.4]} 54.
Kg3 {[%clk 0:00:14.5]} 54... Rxc5 {[%clk 0:00:08.9]} 55. Nf6+ {[%clk 0:00:13.9]}
55... Kg6 {[%clk 0:00:10.1]} 56. Kh2 {[%clk 0:00:14.9]} 56... Kg5 {[%clk
0:00:08.4]} 57. g3 {[%clk 0:00:15.9]} 57... Rc2+ {[%clk 0:00:09.5]} 58. Kg1
{[%clk 0:00:17.2]} 58... Ra2 {[%clk 0:00:08.9]} 59. Nh7+ {[%clk 0:00:18.2]}
59... Kh6 {[%clk 0:00:08]} 60. Nf8 {[%clk 0:00:18.6]} 60... Kg5 {[%clk 0:00:05]}
61. Nh7+ {[%clk 0:00:18.6]} 61... Kh6 {[%clk 0:00:05.8]} 62. Nf8 {[%clk
0:00:19.9]} 62... Kg5 {[%clk 0:00:06.9]} 63. Nh7+ {[%clk 0:00:20]} 1/2-1/2

[Event "*** Titled Tuesday Blitz"]
[Site "Chess.com"]
[Date "2019.07.02"]
[Round "7"]
[White "Andrii_Prydun"]
[Black "Palacios-LLera"]
[Result "0-1"]
[WhiteElo "2289"]
[BlackElo "2417"]
[TimeControl "180+2"]
[EndTime "14:38:22 PDT"]
[Termination "Palacios-LLera won by checkmate"]

1. e4 {[%clk 0:03:01.8]} 1... c5 {[%clk 0:03:00.6]} 2. Nf3 {[%clk 0:03:02.2]}
2... Nc6 {[%clk 0:03:01.7]} 3. d3 {[%clk 0:03:02.2]} 3... g6 {[%clk 0:03:02.1]}
4. Nbd2 {[%clk 0:03:02.9]} 4... Bg7 {[%clk 0:03:03.5]} 5. Be2 {[%clk 0:03:03.2]}
5... d5 {[%clk 0:03:04.4]} 6. exd5 {[%clk 0:03:03.5]} 6... Qxd5 {[%clk
0:03:05.3]} 7. O-O {[%clk 0:03:04.3]} 7... Nf6 {[%clk 0:03:05.8]} 8. c3 {[%clk
0:03:05]} 8... O-O {[%clk 0:03:06]} 9. Qc2 {[%clk 0:03:05.5]} 9... b6 {[%clk
0:03:07]} 10. Re1 {[%clk 0:03:05.5]} 10... Bb7 {[%clk 0:03:07.9]} 11. Bf1 {[%clk
0:03:05.8]} 11... Rad8 {[%clk 0:03:05.8]} 12. Ne4 {[%clk 0:03:05.8]} 12... Nh5
{[%clk 0:02:36.2]} 13. Bg5 {[%clk 0:02:34.2]} 13... Rd7 {[%clk 0:02:22.1]} 14.
h3 {[%clk 0:02:03.2]} 14... h6 {[%clk 0:02:20.9]} 15. Bd2 {[%clk 0:02:00.6]}
15... f5 {[%clk 0:02:13.7]} 16. Ng3 {[%clk 0:01:36.9]} 16... Nxg3 {[%clk
0:02:12.4]} 17. fxg3 {[%clk 0:01:37.7]} 17... e5 {[%clk 0:02:11.2]} 18. Rad1
{[%clk 0:01:29.2]} 18... Kh7 {[%clk 0:02:09.4]} 19. b3 {[%clk 0:01:14.8]} 19...
Re8 {[%clk 0:01:54]} 20. Be3 {[%clk 0:01:13.2]} 20... Red8 {[%clk 0:01:44.7]}
21. g4 {[%clk 0:01:09.8]} 21... f4 {[%clk 0:01:38.9]} 22. Bf2 {[%clk 0:01:09.5]}
22... Qf7 {[%clk 0:01:18.3]} 23. Nd2 {[%clk 0:01:08.1]} 23... Ne7 {[%clk
0:00:58.9]} 24. Ne4 {[%clk 0:01:06.6]} 24... Nd5 {[%clk 0:00:58.5]} 25. Be2
{[%clk 0:01:03.1]} 25... Nf6 {[%clk 0:00:50.3]} 26. Bf3 {[%clk 0:00:56.2]} 26...
Nxe4 {[%clk 0:00:46.2]} 27. Bxe4 {[%clk 0:00:55]} 27... Rd6 {[%clk 0:00:46.5]}
28. Qe2 {[%clk 0:00:28.7]} 28... Kg8 {[%clk 0:00:37.6]} 29. Rd2 {[%clk 0:00:19]}
29... Bxe4 {[%clk 0:00:30.2]} 30. Qxe4 {[%clk 0:00:19.4]} 30... Qd7 {[%clk
0:00:31.1]} 31. Red1 {[%clk 0:00:20.1]} 31... Kf7 {[%clk 0:00:24.3]} 32. a4
{[%clk 0:00:19.1]} 32... Qc6 {[%clk 0:00:20.5]} 33. Qc4+ {[%clk 0:00:13]} 33...
Qd5 {[%clk 0:00:20.5]} 34. Qb5 {[%clk 0:00:11.7]} 34... R8d7 {[%clk 0:00:21.3]}
35. a5 {[%clk 0:00:11.6]} 35... Qc6 {[%clk 0:00:20.9]} 36. Qc4+ {[%clk
0:00:11.3]} 36... Qd5 {[%clk 0:00:22.4]} 37. axb6 {[%clk 0:00:10.6]} 37... axb6
{[%clk 0:00:23.4]} 38. Qb5 {[%clk 0:00:10.6]} 38... Qe6 {[%clk 0:00:24.5]} 39.
b4 {[%clk 0:00:10.8]} 39... cxb4 {[%clk 0:00:24]} 40. Qxb4 {[%clk 0:00:11.9]}
40... h5 {[%clk 0:00:24.1]} 41. Qe4 {[%clk 0:00:12]} 41... hxg4 {[%clk
0:00:24.6]} 42. hxg4 {[%clk 0:00:12.3]} 42... Qxg4 {[%clk 0:00:25.6]} 43. c4
{[%clk 0:00:12.2]} 43... Qf5 {[%clk 0:00:25.9]} 44. Qxf5+ {[%clk 0:00:08.8]}
44... gxf5 {[%clk 0:00:27.1]} 45. c5 {[%clk 0:00:06.2]} 45... bxc5 {[%clk
0:00:27.5]} 46. Bxc5 {[%clk 0:00:07.5]} 46... Rd5 {[%clk 0:00:29.1]} 47. Bb4
{[%clk 0:00:07.4]} 47... Kg6 {[%clk 0:00:25.5]} 48. Bc3 {[%clk 0:00:07.1]} 48...
Kh5 {[%clk 0:00:23.2]} 49. Kf2 {[%clk 0:00:07.4]} 49... Kg4 {[%clk 0:00:24.4]}
50. Ke2 {[%clk 0:00:06.3]} 50... Bf6 {[%clk 0:00:24.5]} 51. Bb2 {[%clk
0:00:05.6]} 51... Bg5 {[%clk 0:00:25.4]} 52. d4 {[%clk 0:00:05.4]} 52... e4
{[%clk 0:00:26.1]} 53. Rc2 {[%clk 0:00:05.7]} 53... Bf6 {[%clk 0:00:27]} 54. Rc4
{[%clk 0:00:05]} 54... Kg3 {[%clk 0:00:27]} 55. Rd2 {[%clk 0:00:04.2]} 55... f3+
{[%clk 0:00:26]} 56. gxf3 {[%clk 0:00:04.9]} 56... exf3+ {[%clk 0:00:27.6]} 57.
Kd3 {[%clk 0:00:05.5]} 57... Bg5 {[%clk 0:00:28.6]} 58. Rd1 {[%clk 0:00:05.7]}
58... f2 {[%clk 0:00:29.9]} 59. Rcc1 {[%clk 0:00:05.1]} 59... Rb7 {[%clk
0:00:28.8]} 60. Rb1 {[%clk 0:00:05.3]} 60... Rb3+ {[%clk 0:00:28.3]} 61. Kc4
{[%clk 0:00:06.3]} 61... Rdb5 {[%clk 0:00:29.6]} 62. Ra1 {[%clk 0:00:03.9]}
62... Rxb2 {[%clk 0:00:30.5]} 63. Ra3+ {[%clk 0:00:04.6]} 63... Kg2 {[%clk
0:00:31.9]} 64. Ra8 {[%clk 0:00:03.6]} 64... R2b4+ {[%clk 0:00:32.8]} 65. Kd3
{[%clk 0:00:04.2]} 65... f1=Q+ {[%clk 0:00:33.9]} 66. Rxf1 {[%clk 0:00:05.1]}
66... Kxf1 {[%clk 0:00:35.5]} 67. Rf8 {[%clk 0:00:04.9]} 67... Rb3+ {[%clk
0:00:35.7]} 68. Kc4 {[%clk 0:00:05.2]} 68... Be3 {[%clk 0:00:36.5]} 69. d5
{[%clk 0:00:05.4]} 69... R3b4+ {[%clk 0:00:36.6]} 70. Kd3 {[%clk 0:00:05.8]}
70... f4 {[%clk 0:00:37.8]} 71. d6 {[%clk 0:00:06.2]} 71... Rd4+ {[%clk
0:00:38.7]} 72. Kc3 {[%clk 0:00:06.7]} 72... Rc5+ {[%clk 0:00:40]} 73. Kb3
{[%clk 0:00:06.6]} 73... Rxd6 {[%clk 0:00:41.5]} 74. Rf7 {[%clk 0:00:06.2]}
74... Rb6+ {[%clk 0:00:42.1]} 75. Ka4 {[%clk 0:00:06.8]} 75... Bd2 {[%clk
0:00:42.8]} 76. Rd7 {[%clk 0:00:04.9]} 76... Ra5# {[%clk 0:00:43.2]} 0-1

[Event "*** Titled Tuesday Blitz"]
[Site "Chess.com"]
[Date "2019.07.02"]
[Round "7"]
[White "Galileo22"]
[Black "NeverEverForever1990"]
[Result "0-1"]
[WhiteElo "2380"]
[BlackElo "2441"]
[TimeControl "180+2"]
[EndTime "14:38:26 PDT"]
[Termination "NeverEverForever1990 won by checkmate"]

1. d4 {[%clk 0:03:01.9]} 1... Nf6 {[%clk 0:02:58.5]} 2. Nf3 {[%clk 0:03:03]}
2... d5 {[%clk 0:02:53.6]} 3. c4 {[%clk 0:03:02.7]} 3... c6 {[%clk 0:02:53]} 4.
g3 {[%clk 0:03:02.7]} 4... Bg4 {[%clk 0:02:51.7]} 5. Bg2 {[%clk 0:03:03.9]} 5...
Nbd7 {[%clk 0:02:48.8]} 6. O-O {[%clk 0:03:04.4]} 6... e6 {[%clk 0:02:34.6]} 7.
Nbd2 {[%clk 0:02:59.7]} 7... Be7 {[%clk 0:02:24]} 8. b3 {[%clk 0:02:44.8]} 8...
O-O {[%clk 0:02:24]} 9. Bb2 {[%clk 0:02:45.5]} 9... a5 {[%clk 0:02:13.2]} 10. a3
{[%clk 0:02:43.9]} 10... b5 {[%clk 0:02:08.3]} 11. c5 {[%clk 0:02:06]} 11... a4
{[%clk 0:02:04.4]} 12. b4 {[%clk 0:02:06.4]} 12... h6 {[%clk 0:02:03.7]} 13. h3
{[%clk 0:01:40.7]} 13... Bf5 {[%clk 0:01:59.2]} 14. Ne5 {[%clk 0:01:33.5]} 14...
Nxe5 {[%clk 0:01:59.6]} 15. dxe5 {[%clk 0:01:34]} 15... Ne4 {[%clk 0:02:00.4]}
16. Nf3 {[%clk 0:01:28.7]} 16... Bh7 {[%clk 0:01:58.9]} 17. Nd4 {[%clk
0:01:24.6]} 17... Qd7 {[%clk 0:01:49.3]} 18. Qe1 {[%clk 0:01:22.9]} 18... f6
{[%clk 0:01:48.2]} 19. Nf3 {[%clk 0:00:47.7]} 19... Ng5 {[%clk 0:01:48.5]} 20.
Nxg5 {[%clk 0:00:41.4]} 20... hxg5 {[%clk 0:01:48.6]} 21. Rd1 {[%clk 0:00:38]}
21... f5 {[%clk 0:01:46.9]} 22. f3 {[%clk 0:00:25.1]} 22... Qe8 {[%clk
0:01:30.8]} 23. g4 {[%clk 0:00:24.4]} 23... f4 {[%clk 0:01:18.8]} 24. e3 {[%clk
0:00:20.3]} 24... fxe3 {[%clk 0:01:14.5]} 25. Bc1 {[%clk 0:00:16.8]} 25... Qg6
{[%clk 0:01:16.4]} 26. Bxe3 {[%clk 0:00:17]} 26... Qh6 {[%clk 0:01:07.4]} 27.
Rd4 {[%clk 0:00:17.1]} 27... Rf4 {[%clk 0:01:04.4]} 28. Bxf4 {[%clk 0:00:13.6]}
28... gxf4 {[%clk 0:01:06.3]} 29. Qd2 {[%clk 0:00:14.5]} 29... Rf8 {[%clk
0:01:06.2]} 30. Re1 {[%clk 0:00:14.6]} 30... Bh4 {[%clk 0:01:07]} 31. Re2 {[%clk
0:00:15.2]} 31... g5 {[%clk 0:01:06]} 32. Bf1 {[%clk 0:00:15.8]} 32... Bg6
{[%clk 0:01:04.7]} 33. Qd1 {[%clk 0:00:15.2]} 33... Kg7 {[%clk 0:00:51.9]} 34.
Qa1 {[%clk 0:00:14.7]} 34... Rh8 {[%clk 0:00:51.2]} 35. Rd1 {[%clk 0:00:14]}
35... Bg3 {[%clk 0:00:51.3]} 36. Red2 {[%clk 0:00:13.4]} 36... Qh4 {[%clk
0:00:51.8]} 37. Bg2 {[%clk 0:00:13.7]} 37... Qh7 {[%clk 0:00:48.9]} 38. Qb2
{[%clk 0:00:14.3]} 38... Qg8 {[%clk 0:00:48.9]} 39. Bf1 {[%clk 0:00:14.8]} 39...
Rh6 {[%clk 0:00:49.8]} 40. Rd4 {[%clk 0:00:13]} 40... Qh7 {[%clk 0:00:50.6]} 41.
Qg2 {[%clk 0:00:14.5]} 41... Bc2 {[%clk 0:00:47.6]} 42. Rc1 {[%clk 0:00:13.3]}
42... Bg6 {[%clk 0:00:43.9]} 43. Rdd1 {[%clk 0:00:14.2]} 43... Rh4 {[%clk
0:00:42.6]} 44. Ra1 {[%clk 0:00:13.9]} 44... Kf8 {[%clk 0:00:41.5]} 45. Rac1
{[%clk 0:00:14.5]} 45... Ke7 {[%clk 0:00:42.2]} 46. Kh1 {[%clk 0:00:15.4]} 46...
Kd8 {[%clk 0:00:42.2]} 47. Kg1 {[%clk 0:00:16.7]} 47... Kc7 {[%clk 0:00:43.4]}
48. Ra1 {[%clk 0:00:17.6]} 48... Kb7 {[%clk 0:00:43.2]} 49. Rac1 {[%clk
0:00:18.5]} 49... Ka6 {[%clk 0:00:44.1]} 50. Ra1 {[%clk 0:00:19.5]} 50... Bc2
{[%clk 0:00:44]} 51. Rdc1 {[%clk 0:00:18.6]} 51... Bd3 {[%clk 0:00:43]} 52. Ra2
{[%clk 0:00:16.6]} 52... Bxf1 {[%clk 0:00:43.4]} 53. Kxf1 {[%clk 0:00:18]} 53...
Rxh3 {[%clk 0:00:43.1]} 54. Kg1 {[%clk 0:00:13.3]} 54... Rh4 {[%clk 0:00:30.7]}
55. Rcc2 {[%clk 0:00:13.1]} 55... Qd3 {[%clk 0:00:30.1]} 56. Qe2 {[%clk
0:00:11.9]} 56... Qh7 {[%clk 0:00:28.8]} 57. Qg2 {[%clk 0:00:12]} 57... Rh6
{[%clk 0:00:27.7]} 58. Rab2 {[%clk 0:00:10.7]} 58... Qh8 {[%clk 0:00:27.2]} 59.
Re2 {[%clk 0:00:10.2]} 59... Qh7 {[%clk 0:00:27.3]} 60. Red2 {[%clk 0:00:11.1]}
60... Kb7 {[%clk 0:00:28.2]} 61. Re2 {[%clk 0:00:10.5]} 61... Kc7 {[%clk
0:00:28.8]} 62. Red2 {[%clk 0:00:11.4]} 62... Rh4 {[%clk 0:00:26.3]} 63. Rbc2
{[%clk 0:00:12.2]} 63... Qg6 {[%clk 0:00:24.6]} 64. Rb2 {[%clk 0:00:12.9]} 64...
Qg7 {[%clk 0:00:24.5]} 65. Re2 {[%clk 0:00:13.9]} 65... Kd7 {[%clk 0:00:25.6]}
66. Rbd2 {[%clk 0:00:13.7]} 66... Ke7 {[%clk 0:00:26.3]} 67. Rb2 {[%clk
0:00:14.7]} 67... Qh7 {[%clk 0:00:27.7]} 68. Rbc2 {[%clk 0:00:14.6]} 68... Qd3
{[%clk 0:00:28.1]} 69. Rcd2 {[%clk 0:00:09]} 69... Qb1+ {[%clk 0:00:23.9]} 70.
Qf1 {[%clk 0:00:09.7]} 70... Rh1+ {[%clk 0:00:25]} 71. Kxh1 {[%clk 0:00:10.8]}
71... Qxf1# {[%clk 0:00:26.3]} 0-1